fUSD/lending_fUSD_20240105
["ID","MTS","AMOUNT","RATE_DAILY","PERIOD"]
[310246669,1704414704062,-1000.0,0.000447,15]
[310246670,1704414704072,-500.0,0.000447,9]
[310246671,1704414704082,-653.58744841,0.00044712,120]
[310246672,1704414704092,-500.0,0.0004472,9]
[310246673,1704414704101,-150.0,0.00044731,30]
[310246674,1704414704110,-500.0,0.0004474,9]
[310246675,1704414704119,-569.14550734,0.00044744,16]
[310246676,1704414704129,-500.0,0.0004476,9]
[310246677,1704414704138,-17062.52834181,0.00044775,4]
[310246678,1704414704147,-2000.0,0.00044775,3]
[310246679,1704414704157,-2000.0,0.00044775,3]
[310246680,1704414704166,-2110.610009,0.00044777,20]
[310246681,1704414704176,-500.0,0.0004478,9]
[310246682,1704414704185,-150.0,0.00044786,120]
[310246683,1704414704195,-300.0,0.00044795,5]
[310246684,1704414704204,-389.0,0.00044795,5]
[310246685,1704414704214,-150.0,0.00044799,30]
[310246686,1704414704223,-3900.00000001,0.000448,2]
[310246687,1704414704232,-1000.0,0.000448,15]
[310246688,1704414704242,-500.0,0.000448,9]
[310246689,1704414704252,-150.0,0.00044813,30]
[310246690,1704414704261,-150.0,0.00044813,30]
[310246691,1704414704271,-500.0,0.0004482,10]
[310246692,1704414704281,-150.0,0.0004483,7]
[310246693,1704414704290,-500.0,0.0004484,10]
[310246694,1704414704300,-750.0,0.00044848,60]
[310246695,1704414704310,-500.0,0.0004486,10]
[310246696,1704414704319,-150.0,0.00044866,30]
[310246697,1704414704329,-500.0,0.0004488,10]
[310246698,1704414704339,-2418.66539338,0.000449,2]
[310246699,1704414704348,-458115.31574635,0.000449,30]
[310246700,1704414704358,-9556.81067012,0.000449,5]
[310246701,1704414704368,-1019.69786346,0.000449,2]
[310246702,1704414704378,-151.0,0.000449,14]
[310246703,1704414704388,-151.0,0.000449,14]
[310246704,1704414704398,-212.581512,0.000449,14]
[310246705,1704414704411,-212.581512,0.000449,14]
[310246706,1704414704421,-520.818755,0.000449,14]
[310246707,1704414704431,-520.818755,0.000449,14]
[310246708,1704414704441,-1444.827588,0.000449,14]
[310246709,1704414704450,-1444.827588,0.000449,14]
[310246710,1704414704461,-151.0,0.000449,14]
[310246711,1704414704472,-1000.0,0.000449,15]
[310246712,1704414704482,-216.58934,0.000449,14]
[310246713,1704414704491,-216.58934,0.000449,14]
[310246714,1704414704502,-495.900744,0.000449,14]
[310246715,1704414704513,-495.900744,0.000449,14]
[310246716,1704414704522,-500.0,0.000449,10]
[310246717,1704414704531,-1175.413069,0.000449,14]
[310246718,1704414704540,-1175.413069,0.000449,14]
[310246719,1704414704550,-151.0,0.000449,14]
[310246720,1704414704559,-200.33934,0.000449,14]
[310246721,1704414704569,-500.0,0.0004492,10]
[310246722,1704414704578,-500.0,0.00044931,7]
[310246723,1704414704588,-522.67,0.00044931,2]
[310246724,1704414704597,-1847.72,0.00044931,7]
[310246725,1704414704606,-150.0,0.00044933,30]
[310246726,1704414704616,-500.0,0.0004494,10]
[310246727,1704414704625,-2816.0,0.00044948,60]
[310246728,1704414704634,-500.0,0.0004496,10]
[310246729,1704414704644,-407.18,0.00044966,2]
[310246730,1704414704654,-150.0,0.00044966,2]
[310246731,1704414704664,-150.0,0.00044966,2]
[310246732,1704414704674,-150.0,0.00044966,2]
[310246733,1704414704683,-293.32,0.00044966,2]
[310246734,1704414704694,-150.0,0.00044966,2]
[310246735,1704414704704,-293.32,0.00044966,2]
[310246736,1704414704713,-407.18,0.00044966,2]
[310246737,1704414704723,-150.0,0.00044966,2]
[310246738,1704414704733,-150.0,0.00044966,2]
[310246739,1704414704743,-150.0,0.00044966,2]
[310246740,1704414704753,-150.0,0.00044966,2]
[310246741,1704414704763,-405.96,0.00044966,2]
[310246742,1704414704774,-293.32,0.00044966,2]
[310246743,1704414704785,-150.0,0.00044966,2]
[310246744,1704414704796,-293.32,0.00044966,2]
[310246745,1704414704806,-150.0,0.00044966,2]
[310246746,1704414704816,-293.32,0.00044966,2]
[310246747,1704414704826,-150.0,0.00044966,2]
[310246748,1704414704836,-601.24,0.00044966,2]
[310246749,1704414704845,-400.0,0.0004497,3]
[310246750,1704414704854,-300.0,0.0004497,3]
[310246751,1704414704864,-79129.87052938,0.0004498,120]
[310246752,1704414704873,-500.0,0.0004498,10]
[310246753,1704414704882,-500.66,0.00044984,3]
[310246754,1704414704892,-500.0,0.00044984,2]
[310246755,1704414704901,-500.0,0.00044984,2]
[310246756,1704414704911,-500.0,0.00044987,39]
[310246757,1704414704921,-150.0,0.00044989,2]
[310246758,1704414704930,-583.74428953,0.0004499,120]
[310246759,1704414704939,-10255.0,0.0004499,2]
[310246760,1704414704948,-382702.31656286,0.00044999,14]
[310246761,1704414705060,-15355.35228273,0.00044999,6]
[310246762,1704414705071,-100000.0,0.00045,15]
[310246763,1704414705081,-300.07741816,0.00045,14]
[310246764,1704414705091,-382.78358551,0.00045,15]
[310246765,1704414705101,-167.8777055,0.00045,7]
[310246766,1704414705111,-5759.66998889,0.00045,15]
[310246767,1704414705122,-804.48179776,0.00045,2]
[310246768,1704414705132,-155.0,0.00045,5]
[310246769,1704414705142,-2110.0,0.00045,15]
[310246770,1704414705151,-1130.99577827,0.00045,14]
[310246771,1704414705160,-2964.38095823,0.00045,10]
[310246772,1704414705169,-681.39669142,0.00045,7]
[310246773,1704414705179,-366797.52542641,0.00045,10]
[310246774,1704414705188,-4130.49588331,0.00045,5]
[310246775,1704414705198,-156.87848114,0.00045,7]
[310246776,1704414705208,-5415.0,0.00045,10]
[310246777,1704414705218,-9121.0,0.00045,10]
[310246778,1704414705227,-170.53232303,0.00045,14]
[310246779,1704414705236,-38170.69818773,0.00045,20]
[310246780,1704414705246,-6134393.64169449,0.00045,30]
[310246781,1704414705256,-52502.1595792,0.00045,120]
[310246782,1704414705265,-326.16131825,0.00045,30]
[310246783,1704414705275,-5648.38254463,0.00045,7]
[310246784,1704414705285,-20500.0,0.00045,7]
[310246785,1704414705294,-234353.37936827,0.00045,2]
[310246786,1704414705304,-364107.98064435,0.00045,4]
[310246787,1704414705313,-3889.44289199,0.00045,2]
[310246788,1704414705323,-3238.87881633,0.00045,30]
[310246789,1704414705332,-3010.0,0.00045,7]
[310246790,1704414705341,-247256.68551655,0.00045,120]
[310246791,1704414705350,-150.0,0.00045,30]
[310246792,1704414705361,-259355.63463,0.00045,4]
[310246793,1704414705370,-5400.0,0.00045,2]
[310246794,1704414705380,-629.83363973,0.00045,20]
[310246795,1704414705389,-400.0,0.00045,120]
[310246796,1704414705398,-2965.15681529,0.00045,2]
[310246797,1704414705409,-156.24736939,0.00045,120]
[310246798,1704414705418,-278.0,0.00045,30]
[310246799,1704414705427,-3115.83527431,0.00045,120]
[310246800,1704414705436,-270.76397983,0.00045,30]
[310246801,1704414705446,-109338.87187026,0.00045,2]
[310246802,1704414705455,-276.76955951,0.00045,5]
[310246803,1704414705465,-8890.23824228,0.00045,7]
[310246804,1704414705474,-500.0,0.00045,120]
[310246805,1704414705484,-1903183.52678007,0.00045,120]
[310246806,1704414705494,-100128.92444939,0.00045,32]
[310246807,1704414705503,-149999.0,0.00045,32]
[310246808,1704414705513,-45613.0,0.00045,32]
[310246809,1704414705522,-5000.0,0.00045,2]
[310246810,1704414705532,-2098.9223882,0.00045,30]
[310246811,1704414705541,-155.0,0.00045,4]
[310246812,1704414705552,-1502.58062411,0.00045,4]
[310246813,1704414705561,-706.64542123,0.00045,120]
[310246814,1704414705571,-547.12231407,0.00045,60]
[310246815,1704414705581,-941.88578629,0.00045,30]
[310246816,1704414705591,-155.0,0.00045,4]
[310246817,1704414705600,-155.0,0.00045,4]
[310246818,1704414705610,-2956.66360911,0.00045,6]
[310246819,1704414705619,-350.0,0.00045,120]
[310246820,1704414705629,-4157.69797166,0.00045,4]
[310246821,1704414705638,-3328.66553866,0.00045,2]
[310246822,1704414705647,-33718.63149706,0.00045,4]
[310246823,1704414705659,-728.83368993,0.00045,30]
[310246824,1704414705668,-206.60688654,0.00045,30]
[310246825,1704414705678,-1538.32471562,0.00045,30]
[310246826,1704414705687,-149999.0,0.00045,32]
[310246827,1704414705697,-300.0,0.00045,46]
[310246828,1704414705707,-90381.17132045,0.00045,32]
[310246829,1704414705716,-363.3240145,0.00045,30]
[310246830,1704414705726,-1403.26929302,0.00045,4]
[310246831,1704414705735,-724.87889077,0.00045,30]
[310246832,1704414705745,-2378.0,0.00045,90]
[310246833,1704414705755,-3094.0,0.00045,90]
[310246834,1704414705766,-210.0,0.00045,30]
[310246835,1704414705775,-15279.27824825,0.00045,20]
[310246836,1704414705786,-181.78622524,0.00045,2]
[310246837,1704414705799,-510.2228166,0.00045,30]
[310246838,1704414705808,-1278.58997973,0.00045,2]
[310246839,1704414705818,-917.31,0.00045,7]
[310246840,1704414705827,-20000.0,0.00045,120]
[310246841,1704414705837,-7481.0,0.00045,120]
[310246842,1704414705846,-209.21259123,0.00045,30]
[310246843,1704414705855,-2000.0,0.00045,2]
[310246844,1704414705864,-700.0,0.00045,3]
[310246845,1704414705874,-2047.696329,0.00045,17]
[310246846,1704414705883,-304.434168,0.00045,21]
[310246847,1704414705893,-151.0,0.00045,14]
[310246848,1704414705905,-273.435579,0.00045,14]
[310246849,1704414705914,-151.0,0.00045,14]
[310246850,1704414705923,-151.0,0.00045,14]
[310246851,1704414705932,-6537.31,0.00045,120]
[310246852,1704414705941,-6537.311,0.00045,120]
[310246853,1704414705950,-6537.311,0.00045,120]
[310246854,1704414705959,-6537.311,0.00045,120]
[310246855,1704414705968,-6537.311,0.00045,120]
[310246856,1704414705977,-212.581512,0.00045,14]
[310246857,1704414705987,-212.581512,0.00045,14]
[310246858,1704414705997,-212.581512,0.00045,14]
[310246859,1704414706006,-212.581508,0.00045,14]
[310246860,1704414706016,-520.818755,0.00045,14]
[310246861,1704414706025,-520.818755,0.00045,14]
[310246862,1704414706035,-520.818755,0.00045,14]
[310246863,1704414706044,-520.818751,0.00045,14]
[310246864,1704414706054,-808.0,0.00045,120]
[310246865,1704414706063,-1962.663428,0.00045,21]
[310246866,1704414706073,-1444.827588,0.00045,14]
[310246867,1704414706083,-1444.827588,0.00045,14]
[310246868,1704414706093,-1444.827588,0.00045,14]
[310246869,1704414706103,-1444.827579,0.00045,14]
[310246870,1704414706112,-151.0,0.00045,14]
[310246871,1704414706121,-151.0,0.00045,14]
[310246872,1704414706131,-1000.0,0.00045,15]
[310246873,1704414706140,-216.58934,0.00045,14]
[310246874,1704414706149,-216.58934,0.00045,14]
[310246875,1704414706161,-216.58934,0.00045,14]
[310246876,1704414706170,-216.589342,0.00045,14]
[310246877,1704414706180,-495.900744,0.00045,14]
[310246878,1704414706190,-495.900744,0.00045,14]
[310246879,1704414706199,-495.900744,0.00045,14]
[310246880,1704414706209,-495.900754,0.00045,14]
[310246881,1704414706219,-41047.59187958,0.00045,20]
[310246882,1704414706229,-1000.0,0.00045,2]
[310246883,1704414706239,-500.0,0.00045,10]
[310246884,1704414706249,-300.0,0.00045,21]
[310246885,1704414706259,-298.007986,0.00045,61]
[310246886,1704414706271,-150.0,0.00045,61]
[310246887,1704414706282,-1000.0,0.00045,2]
[310246888,1704414706293,-1175.413069,0.00045,14]
[310246889,1704414706303,-1175.413069,0.00045,14]
[310246890,1704414706314,-1175.413069,0.00045,14]
[310246891,1704414706325,-1175.413072,0.00045,14]
[310246892,1704414706336,-151.0,0.00045,14]
[310246893,1704414706347,-151.0,0.00045,14]
[310246894,1704414706357,-8000.0,0.00045,120]
[310246895,1704414706368,-2044.0,0.00045,10]
[310246896,1704414706379,-277.50443909,0.00045,30]
[310246897,1704414706390,-206.79447204,0.00045,30]
[310246898,1704414706400,-175.29877421,0.00045,30]
[310246899,1704414706418,-186.65669548,0.00045,30]
[310246900,1704414706428,-214.26449473,0.00045,30]
[310246901,1704414706438,-168.88033924,0.00045,30]
[310246902,1704414706448,-166.66888648,0.00045,30]
[310246903,1704414706457,-166.82398755,0.00045,30]
[310246904,1704414706467,-977.7073741,0.00045005,5]
[310246905,1704414706477,-20000.0000009,0.00045067,10]
[310246906,1704414706486,-680.3818,0.0004514,30]
[310246907,1704414706496,-1000.0,0.00045149,2]
[310246908,1704414706506,-150.0,0.00045154,5]
[310246909,1704414706517,-448.35,0.00045162,2]
[310246910,1704414706527,-60715.126266,0.00045191,30]
[310246911,1704414706537,-220.0,0.00045198,28]
[310246912,1704414706547,-210.0,0.00045199,35]
[310246913,1704414706557,-500.0,0.00045205,7]
[310246914,1704414706567,-666.0,0.00045205,2]
[310246915,1704414706578,-1847.72,0.00045205,7]
[310246916,1704414706588,-150.0,0.00045276,120]
[310246917,1704414706597,-300.0,0.000453,2]
[310246918,1704414706607,-390.0,0.000453,2]
[310246919,1704414706617,-507.0,0.000453,2]
[310246920,1704414706627,-659.0,0.000453,2]
[310246921,1704414706637,-856.0,0.000453,2]
[310246922,1704414706647,-1113.0,0.000453,2]
[310246923,1704414706663,-1448.0,0.000453,2]
[310246924,1704414706677,-1882.0,0.000453,2]
[310246925,1704414706715,-2447.0,0.000453,2]
[310246926,1704414706726,-2871.0,0.000453,2]
[310246927,1704414706746,-522.67,0.00045342,2]
[310246928,1704414706862,-626.0,0.0004538,10]
[310246929,1704414706882,-152.95511515,0.00045449,27]
[310246930,1704414706892,-500.0,0.00045479,7]
[310246931,1704414706902,-1847.72,0.00045479,7]
[310246932,1704414706916,-2110.0,0.000455,15]
[310246933,1704414706925,-4500.0,0.000455,3]
[310246934,1704414706935,-20000.0,0.000455,60]
[310246935,1704414706944,-10000.0,0.000455,45]
[310246936,1704414706953,-150.0,0.00045562,120]
[310246937,1704414706963,-385.49026584,0.000456,4]
[310246938,1704414706972,-500.0,0.00045753,7]
[310246939,1704414706982,-522.67,0.00045753,2]
[310246940,1704414706992,-1847.72,0.00045753,7]
[310246941,1704414707024,-400.0,0.00045781,120]
[310246942,1704414707039,-350.0,0.00045836,120]
[310246943,1704414707054,-73966.35801672,0.0004588,100]
[310246944,1704414707079,-14515.03820785,0.000459,2]
[310246945,1704414707102,-379.98,0.000459,2]
[310246946,1704414707119,-380.0,0.000459,2]
[310246947,1704414707129,-380.0,0.000459,2]
[310246948,1704414707139,-380.0,0.000459,2]
[310246949,1704414707149,-380.0,0.000459,2]
[310246950,1704414707163,-380.0,0.000459,2]
[310246951,1704414707173,-380.0,0.000459,2]
[310246952,1704414707183,-380.0,0.000459,2]
[310246953,1704414707194,-290.28,0.000459,2]
[310246954,1704414707204,-4726.79892102,0.000459,30]
[310246955,1704414707214,-150.0,0.00045927,2]
[310246956,1704414707224,-5000.0,0.00045986,4]
[310246957,1704414707235,-500.0,0.00045987,41]
[310246958,1704414707244,-100000.0,0.00046,16]
[310246959,1704414707254,-22857.65,0.00046,30]
[310246960,1704414707264,-300.0,0.00046,47]
[310246961,1704414707274,-363.21160262,0.00046,20]
[310246962,1704414707284,-2110.0,0.00046,15]
[310246963,1704414707294,-200.0,0.00046,25]
[310246964,1704414707303,-10000.0,0.00046,120]
[310246965,1704414707314,-27483.53040982,0.00046,6]
[310246966,1704414707324,-500.0,0.00046,60]
[310246967,1704414707334,-6551.82978885,0.00046,120]
[310246968,1704414707344,-152.99383873,0.00046,120]
[310246969,1704414707353,-200.0,0.00046,30]
[310246970,1704414707363,-26163.2710228,0.00046,120]
[310246971,1704414707372,-763.0,0.00046,120]
[310246972,1704414707382,-249.0,0.00046,30]
[310246973,1704414707393,-300.0,0.00046,22]
[310246974,1704414707402,-177.507059,0.00046,73]
[310246975,1704414707414,-500.0,0.00046027,7]
[310246976,1704414707423,-1847.72,0.00046027,7]
[310246977,1704414707433,-2000.0,0.0004606,120]
[310246978,1704414707442,-4999.90991177,0.000461,60]
[310246979,1704414707452,-522.67,0.00046164,2]
[310246980,1704414707462,-200.0,0.000462,2]
[310246981,1704414707472,-200.0,0.000462,2]
[310246982,1704414707481,-150.0,0.0004627,5]
[310246983,1704414707491,-500.0,0.00046301,7]
[310246984,1704414707500,-1847.72,0.00046301,7]
[310246985,1704414707510,-12937.21881281,0.00046388,60]
[310246986,1704414707519,-750.0,0.000464,82]
[310246987,1704414707528,-150.0,0.00046493,120]
[310246988,1704414707538,-2110.0,0.000465,15]
[310246989,1704414707548,-56450.74323,0.000465,30]
[310246990,1704414707557,-156.87,0.000465,7]
[310246991,1704414707566,-1500.0,0.000465,30]
[310246992,1704414707575,-1336.937093,0.000465,30]
[310246993,1704414707584,-5755.665668,0.00046548,120]
[310246994,1704414707594,-90859.944044,0.00046548,120]
[310246995,1704414707603,-1636.992668,0.00046548,120]
[310246996,1704414707613,-267036.35131545,0.0004655,14]
[310246997,1704414707622,-500.0,0.00046575,7]
[310246998,1704414707631,-4657.550416,0.00046575,120]
[310246999,1704414707641,-522.67,0.00046575,2]
[310247000,1704414707650,-5000.0,0.00046575,30]
[310247001,1704414707663,-5000.0,0.00046575,33]
[310247002,1704414707672,-5000.0,0.00046575,36]
[310247003,1704414707682,-5000.0,0.00046575,39]
[310247004,1704414707691,-5000.0,0.00046575,42]
[310247005,1704414707701,-5000.0,0.00046575,45]
[310247006,1704414707711,-4133.4710776,0.00046575,48]
[310247007,1704414707720,-1847.72,0.00046575,7]
[310247008,1704414707730,-1500.0,0.00046575,30]
[310247009,1704414707740,-1500.0,0.00046575,33]
[310247010,1704414707750,-1500.0,0.00046575,36]
[310247011,1704414707759,-1500.0,0.00046575,39]
[310247012,1704414707770,-1500.0,0.00046575,42]
[310247013,1704414707810,-1500.0,0.00046575,45]
[310247014,1704414707820,-1579.77117111,0.00046575,48]
[310247015,1704414707830,-1183.19948345,0.00046575,12]
[310247016,1704414707840,-3162.21000763,0.00046575,12]
[310247017,1704414707850,-16726.40925175,0.00046575,12]
[310247018,1704414707860,-40976.28440897,0.00046575,12]
[310247019,1704414707869,-564.92473286,0.00046575,12]
[310247020,1704414707878,-774.80226082,0.00046575,12]
[310247021,1704414707887,-23524.17138607,0.00046575,12]
[310247022,1704414707898,-535.35251358,0.00046575,12]
[310247023,1704414707911,-400.0,0.00046575,120]
[310247024,1704414707922,-641.04650559,0.00046575,12]
[310247025,1704414707932,-977.7073741,0.00046584,5]
[310247026,1704414707942,-20000.0,0.000466,30]
[310247027,1704414707954,-320000.0,0.000466,12]
[310247028,1704414707966,-207000.0,0.000466,11]
[310247029,1704414707976,-202.48595596,0.000466,55]
[310247030,1704414707986,-350.0,0.00046658,120]
[310247031,1704414707995,-150.0,0.00046726,120]
[310247032,1704414708005,-572.27966468,0.0004675,30]
[310247033,1704414708016,-4155.0,0.000468,30]
[310247034,1704414708026,-12000.0,0.00046825,8]
[310247035,1704414708038,-500.0,0.00046849,7]
[310247036,1704414708048,-1847.72,0.00046849,7]
[310247037,1704414708059,-170.0,0.00046849,90]
[310247038,1704414708069,-152.95511515,0.00046858,32]
[310247039,1704414708079,-5000.0,0.00046862,23]
[310247040,1704414708090,-5000.0,0.00046862,21]
[310247041,1704414708101,-5000.0,0.00046862,21]
[310247042,1704414708112,-1248.08788637,0.00046862,24]
[310247043,1704414708336,-1086.66735844,0.00046862,24]
[310247044,1704414708477,-2358.37906271,0.00022999,2]
[310247045,1704414708488,-2258.61940994,0.00032876,2]
[310247046,1704414708502,-1834.54059006,0.00032876,2]
[310247047,1704414708511,-500.0,0.00032876,2]
[310247048,1704414708520,-794.23202936,0.00032876,2]
[310247049,1704414708723,-781.7,0.00032866,10]
[310247050,1704414708733,-3697.38797064,0.00032876,2]
[310247051,1704414708742,-500.0,0.00032876,2]
[310247052,1704414708752,-500.0,0.00032876,2]
[310247053,1704414708762,-4093.16,0.0003315,2]
[310247054,1704414708772,-500.0,0.0003315,2]
[310247055,1704414708782,-4491.62,0.0003315,2]
[310247056,1704414708792,-4093.16,0.00033424,2]
[310247057,1704414708803,-500.0,0.00033424,2]
[310247058,1704414708813,-4491.62,0.00033424,2]
[310247059,1704414708823,-4093.16,0.00033698,2]
[310247060,1704414708833,-500.0,0.00033698,2]
[310247061,1704414708843,-4491.62,0.00033698,2]
[310247062,1704414708853,-4093.16,0.00033972,2]
[310247063,1704414708863,-500.0,0.00033972,2]
[310247064,1704414708873,-4491.62,0.00033972,2]
[310247065,1704414708882,-4093.16,0.00034246,2]
[310247066,1704414708892,-500.0,0.00034246,2]
[310247067,1704414708901,-4491.62,0.00034246,2]
[310247068,1704414708915,-4093.16,0.0003452,2]
[310247069,1704414708925,-500.0,0.0003452,2]
[310247070,1704414708934,-4491.62,0.0003452,2]
[310247071,1704414708943,-4093.16,0.00034794,2]
[310247072,1704414708952,-500.0,0.00034794,2]
[310247073,1704414708962,-4491.62,0.00034794,2]
[310247074,1704414708972,-4093.16,0.00035068,2]
[310247075,1704414708988,-500.0,0.00035068,2]
[310247076,1704414709003,-4491.62,0.00035068,2]
[310247077,1704414709013,-500.0,0.00035342,2]
[310247078,1704414709023,-500.0,0.00035342,2]
[310247079,1704414709033,-500.0,0.00035342,2]
[310247080,1704414709042,-500.0,0.00035342,2]
[310247081,1704414709052,-500.0,0.00035342,2]
[310247082,1704414709062,-500.0,0.00035342,2]
[310247083,1704414709073,-500.0,0.00035342,2]
[310247084,1704414709083,-500.0,0.00035342,2]
[310247085,1704414709093,-500.0,0.00035342,2]
[310247086,1704414709104,-500.0,0.00035342,2]
[310247087,1704414709114,-500.0,0.00035342,2]
[310247088,1704414709123,-500.0,0.00035342,2]
[310247089,1704414709133,-4093.16,0.00035342,2]
[310247090,1704414709143,-500.0,0.00035342,2]
[310247091,1704414709153,-4093.16,0.00035616,2]
[310247092,1704414709166,-500.0,0.00035616,2]
[310247093,1704414709175,-4093.16,0.0003589,2]
[310247094,1704414709185,-500.0,0.0003589,2]
[310247095,1704414709195,-4093.16,0.00036164,2]
[310247096,1704414709204,-4093.16,0.00036438,2]
[310247097,1704414709214,-2665.24475519,0.00046862,24]
[310247098,1704414709223,-5000.0,0.00046862,23]
[310247099,1704414709233,-150.0,0.00046864,2]
[310247100,1704414709242,-840.15261082,0.00046889,2]
[310247101,1704414709252,-1192.11836427,0.000469,30]
[310247102,1704414709263,-279.2466656,0.000469,30]
[310247103,1704414709273,-7000.0,0.00046933,2]
[310247104,1704414709282,-1573.31297542,0.00046939,4]
[310247105,1704414709292,-522.67,0.00046986,2]
[310247106,1704414709302,-500.0,0.00046987,43]
[310247107,1704414709312,-2298.0,0.0004699,2]
[310247108,1704414709321,-179.18624933,0.00046995,5]
[310247109,1704414709331,-39251.5656104,0.00046999,30]
[310247110,1704414804450,154.69,0.00022177,2]
[310247111,1704414804472,845.31,0.00022177,2]
[310247112,1704415287246,200.0,0.00022177,2]
[310247115,1704415496990,21540.89,0.00022177,2]
[310247116,1704415694599,221.2,0.00022343,2]
[310247117,1704415706737,155.07,0.00022177,2]
[310247125,1704415832135,-155.07,0.00023286,2]
[310247126,1704415832146,-150.0,0.00023286,2]
[310247127,1704415832155,-155.07,0.00024395,2]
[310247128,1704415832165,-247.07771668,0.00024657,2]
[310247129,1704415832196,-1018.92228332,0.00024657,2]
[310247130,1704415832206,-93.46385211,0.00024658,2]
[310247131,1704415832217,-156.53614789,0.00024658,2]
[310247132,1704415832226,-1000.0,0.00024949,2]
[310247133,1704415832236,-200.0,0.00024949,2]
[310247134,1704415832245,-531.75470326,0.00025,2]
[310247135,1704415832254,-150.0,0.00026079,2]
[310247136,1704415832264,-1580.15293572,0.00026999,2]
[310247137,1704415832276,-250.0,0.00027,3]
[310247138,1704415832285,-305.18,0.00027192,2]
[310247139,1704415832294,-150.0,0.00027199,2]
[310247140,1704415832303,-479.36265136,0.000272,6]
[310247141,1704415832313,-1955.0,0.000272,2]
[310247142,1704415832322,-20551.0,0.000272,2]
[310247143,1704415832331,-792.74,0.000272,2]
[310247144,1704415832340,-250.0,0.00027397,2]
[310247145,1704415832349,-1000.0,0.00027721,2]
[310247146,1704415832358,-200.0,0.00027721,2]
[310247147,1704415832368,-2837.36,0.00028376,2]
[310247148,1704415832380,-334.06,0.00028781,2]
[310247149,1704415832389,-7415.4868,0.000289,2]
[310247150,1704415832398,-50162.68276807,0.000289,2]
[310247151,1704415832419,-705.76381,0.000289,2]
[310247152,1704415832437,-6440.77720223,0.000289,2]
[310247154,1704415832453,-1513.72189445,0.000289,2]
[310247156,1704415832465,-280.24516117,0.000289,2]
[310247208,1704415838182,-16178.46123014,0.000289,2]
[310247210,1704415838244,-2374.15103492,0.000289,2]
[310247211,1704415838263,-1229.37235755,0.000289,2]
[310247212,1704415838313,-500.0,0.000289,2]
[310247213,1704415838380,-2504.213,0.000289,2]
[310247214,1704415838444,-377.44548477,0.000289,2]
[310247215,1704415838456,-1622.82981325,0.000289,2]
[310247226,1704415838681,-294.73041095,0.000289,2]
[310247227,1704415838692,-2961.20182407,0.000289,2]
[310247228,1704415838704,-843.85681644,0.000289,2]
[310247229,1704415838715,-46149.63009199,0.000289,2]
[310247230,1704415838725,-250.4547,0.000289,2]
[310247231,1704415838735,-418.61991585,0.0002899,2]
[310247232,1704415838744,-300.0,0.00029,3]
[310247233,1704415838753,-47026.49369438,0.00029,2]
[310247234,1704415838765,-260.66344161,0.00029,2]
[310247238,1704415840706,-270.90301594,0.00029,2]
[310247239,1704415840718,-1407.05883315,0.00029,2]
[310247240,1704415840776,-10645.36733761,0.00029,2]
[310247241,1704415840840,-253.78147318,0.00029,2]
[310247242,1704415840904,-4309.4044643,0.00029,2]
[310247243,1704415840915,-565.2681585,0.00029,2]
[310247244,1704415841590,-2200.51,0.00029,2]